fUST/lending_fUST_20241111
["ID","MTS","AMOUNT","RATE_DAILY","PERIOD"]
[341881927,1731265840865,-1626.31,0.0002493,2]
[341881928,1731265840875,-1626.31,0.0002493,2]
[341881929,1731265840885,-1626.31,0.0002493,2]
[341881930,1731265840894,-1626.42664954,0.0002493,2]
[341881931,1731265840904,-500.0,0.00024931,2]
[341881932,1731265840913,-500.0,0.00024931,2]
[341881933,1731265840923,-500.0,0.00024931,2]
[341881934,1731265840933,-378.2928583,0.00024931,2]
[341881935,1731265840942,-500.0,0.00024931,2]
[341881936,1731265840952,-500.0,0.00024931,2]
[341881937,1731265840962,-500.0,0.00024931,2]
[341881938,1731265840971,-500.0,0.00024931,2]
[341881939,1731265840980,-500.0,0.00024931,2]
[341881940,1731265840989,-225.73763216,0.00024931,2]
[341881941,1731265840999,-500.0,0.00024931,2]
[341881942,1731265841009,-500.0,0.00024931,2]
[341881943,1731265841018,-500.0,0.00024931,2]
[341881944,1731265841030,-500.0,0.00024931,2]
[341881945,1731265841039,-500.0,0.00024931,2]
[341881946,1731265841049,-575.41,0.00024931,2]
[341881947,1731265841058,-500.0,0.00024931,2]
[341881948,1731265841068,-500.0,0.00024931,2]
[341881949,1731265841077,-500.0,0.00024931,2]
[341881950,1731265841086,-500.0,0.00024931,2]
[341881951,1731265841097,-500.0,0.00024931,2]
[341881952,1731265841106,-500.0,0.00024931,2]
[341881953,1731265841115,-500.0,0.00024931,2]
[341881954,1731265841125,-500.0,0.00024931,2]
[341881955,1731265841134,-500.0,0.00024931,2]
[341881956,1731265841143,-500.0,0.00024931,2]
[341881957,1731265841153,-845.13,0.00024931,2]
[341881958,1731265841162,-500.0,0.00024931,2]
[341881959,1731265841172,-500.0,0.00024931,2]
[341881960,1731265841182,-500.0,0.00024931,2]
[341881961,1731265841191,-500.0,0.00024931,2]
[341881962,1731265841202,-500.0,0.00024931,2]
[341881963,1731265841211,-500.0,0.00024931,2]
[341881964,1731265841221,-500.0,0.00024931,2]
[341881965,1731265841231,-500.0,0.00024931,2]
[341881966,1731265841240,-1731.01,0.00024931,2]
[341881967,1731265841249,-500.0,0.00024931,2]
[341881968,1731265841259,-500.0,0.00024931,2]
[341881969,1731265841268,-500.0,0.00024931,2]
[341881970,1731265841280,-500.0,0.00024931,2]
[341881971,1731265841290,-500.0,0.00024931,2]
[341881972,1731265841300,-500.0,0.00024931,2]
[341881973,1731265841309,-832.9,0.00024931,2]
[341881974,1731265841319,-998.14,0.00024931,2]
[341881975,1731265841328,-500.0,0.00024931,2]
[341881976,1731265841337,-2001.43,0.00024931,2]
[341881977,1731265841347,-500.0,0.00024931,2]
[341881978,1731265841356,-500.0,0.00024931,2]
[341881979,1731265841367,-2336.0,0.00024931,2]
[341881980,1731265841376,-500.0,0.00024931,2]
[341881981,1731265841386,-500.0,0.00024931,2]
[341881982,1731265841396,-500.0,0.00024931,2]
[341881983,1731265841406,-1489.28,0.00024931,2]
[341881984,1731265841416,-500.0,0.00024931,2]
[341881985,1731265841426,-500.0,0.00024931,2]
[341881986,1731265841436,-500.0,0.00024931,2]
[341881987,1731265841447,-418.32110219,0.00024931,2]
[341881988,1731265841456,-500.0,0.00024931,2]
[341881989,1731265841465,-500.0,0.00024931,2]
[341881990,1731265841475,-500.0,0.00024931,2]
[341881991,1731265841484,-500.0,0.00024931,2]
[341881992,1731265841494,-500.0,0.00024931,2]
[341881993,1731265841503,-500.0,0.00024931,2]
[341881994,1731265841513,-500.0,0.00024931,2]
[341881995,1731265841524,-500.0,0.00024931,2]
[341881996,1731265841533,-500.0,0.00024931,2]
[341881997,1731265841543,-807.03,0.00024931,2]
[341881998,1731265841552,-500.0,0.00024931,2]
[341881999,1731265841561,-977.78,0.00024931,2]
[341882000,1731265841572,-500.0,0.00024931,2]
[341882001,1731265841582,-500.0,0.00024931,2]
[341882002,1731265841591,-188.81509903,0.00024931,2]
[341882003,1731265841600,-500.0,0.00024931,2]
[341882004,1731265841610,-500.0,0.00024931,2]
[341882005,1731265841619,-506.55,0.00024931,2]
[341882006,1731265841628,-500.0,0.00024931,2]
[341882007,1731265841638,-500.0,0.00024931,2]
[341882008,1731265841647,-500.0,0.00024931,2]
[341882009,1731265841658,-1273.93,0.00024931,2]
[341882010,1731265841668,-500.0,0.00024931,2]
[341882011,1731265841677,-500.0,0.00024931,2]
[341882012,1731265841686,-2567.11,0.00024931,2]
[341882013,1731265841695,-500.0,0.00024931,2]
[341882014,1731265841705,-500.0,0.00024931,2]
[341882015,1731265841714,-500.0,0.00024931,2]
[341882016,1731265841726,-500.0,0.00024931,2]
[341882017,1731265841736,-500.0,0.00024931,2]
[341882018,1731265841746,-500.0,0.00024931,2]
[341882019,1731265841755,-977.17,0.00024931,2]
[341882020,1731265841764,-500.0,0.00024931,2]
[341882021,1731265841778,-500.0,0.00024931,2]
[341882022,1731265841789,-500.0,0.00024931,2]
[341882023,1731265841798,-500.0,0.00024931,2]
[341882024,1731265841812,-2504.22,0.00024931,2]
[341882025,1731265841822,-500.0,0.00024931,2]
[341882026,1731265841832,-500.0,0.00024931,2]
[341882027,1731265841842,-955.57,0.00024931,2]
[341882028,1731265841851,-596.07968421,0.00024931,2]
[341882029,1731265841861,-500.0,0.00024931,2]
[341882030,1731265841871,-500.0,0.00024931,2]
[341882031,1731265841880,-553.76,0.00024931,2]
[341882032,1731265841890,-500.0,0.00024931,2]
[341882033,1731265841899,-500.0,0.00024931,2]
[341882034,1731265841910,-631.47,0.00024931,2]
[341882035,1731265841920,-500.0,0.00024931,2]
[341882036,1731265841929,-548.7319602,0.00024931,2]
[341882037,1731265841938,-500.0,0.00024931,2]
[341882038,1731265841948,-1219.26,0.00024931,2]
[341882039,1731265841957,-500.0,0.00024931,2]
[341882040,1731265841968,-3362.96,0.00024931,2]
[341882041,1731265841977,-1292.39,0.00024931,2]
[341882042,1731265841986,-500.0,0.00024931,2]
[341882043,1731265841996,-500.0,0.00024931,2]
[341882044,1731265842005,-902.38,0.00024931,2]
[341882045,1731265842015,-500.0,0.00024931,2]
[341882046,1731265842026,-500.0,0.00024931,2]
[341882047,1731265842036,-500.0,0.00024931,2]
[341882048,1731265842045,-500.0,0.00024931,2]
[341882049,1731265842055,-573.32,0.00024931,2]
[341882050,1731265842064,-4064.15,0.00024931,2]
[341882051,1731265842074,-500.0,0.00024931,2]
[341882052,1731265842083,-500.0,0.00024931,2]
[341882053,1731265842092,-500.0,0.00024931,2]
[341882054,1731265842102,-500.0,0.00024931,2]
[341882055,1731265842111,-500.0,0.00024931,2]
[341882056,1731265842120,-5741.44,0.00024931,2]
[341882057,1731265842129,-588.45,0.00024931,2]
[341882058,1731265842139,-500.0,0.00024931,2]
[341882059,1731265842148,-853.21,0.00024931,2]
[341882060,1731265842157,-13269.49,0.00024931,2]
[341882061,1731265842167,-544.38,0.00024931,2]
[341882062,1731265842176,-637.25,0.00024931,2]
[341882063,1731265842186,-1288.67,0.00024931,2]
[341882064,1731265842195,-500.0,0.00024931,2]
[341882065,1731265842204,-500.0,0.00024931,2]
[341882066,1731265842214,-500.0,0.00024931,2]
[341882067,1731265842224,-921.43,0.00024931,2]
[341882068,1731265842233,-500.0,0.00024931,2]
[341882069,1731265842242,-468.0,0.00024932,2]
[341882070,1731265842251,-198.0,0.00024932,2]
[341882071,1731265842261,-420.0,0.00024989,2]
[341882072,1731265842270,-159.0,0.00025,2]
[341882073,1731265842282,-468.0,0.00025,2]
[341882074,1731265842292,-198.0,0.00025,2]
[341882075,1731265842302,-8538.4275308,0.00025026,2]
[341882076,1731265842311,-1766.72710351,0.00025105,2]
[341882077,1731265842320,-168.495589,0.00025156,2]
[341882078,1731265842330,-500.0,0.00025178,2]
[341882079,1731265842340,-453.44102107,0.00025179,2]
[341882080,1731265842349,-500.0,0.00025179,2]
[341882081,1731265842358,-500.0,0.00025205,2]
[341882082,1731265842368,-500.0,0.00025205,2]
[341882083,1731265842377,-500.0,0.00025205,2]
[341882084,1731265842387,-500.0,0.00025205,2]
[341882085,1731265842396,-500.0,0.00025205,2]
[341882086,1731265842405,-500.0,0.00025205,2]
[341882087,1731265842414,-500.0,0.00025205,2]
[341882088,1731265842423,-500.0,0.00025205,2]
[341882089,1731265842433,-500.0,0.00025205,2]
[341882090,1731265842442,-500.0,0.00025205,2]
[341882091,1731265842451,-500.0,0.00025205,2]
[341882092,1731265842461,-575.41,0.00025205,2]
[341882093,1731265842470,-500.0,0.00025205,2]
[341882094,1731265842480,-500.0,0.00025205,2]
[341882095,1731265842489,-500.0,0.00025205,2]
[341882096,1731265842499,-500.0,0.00025205,2]
[341882097,1731265842509,-500.0,0.00025205,2]
[341882098,1731265842519,-500.0,0.00025205,2]
[341882099,1731265842646,-500.0,0.00025205,2]
[341882100,1731265842656,-500.0,0.00025205,2]
[341882101,1731265842666,-500.0,0.00025205,2]
[341882102,1731265842676,-500.0,0.00025205,2]
[341882103,1731265842685,-845.13,0.00025205,2]
[341882104,1731265842695,-500.0,0.00025205,2]
[341882105,1731265842704,-500.0,0.00025205,2]
[341882106,1731265842714,-500.0,0.00025205,2]
[341882107,1731265842724,-500.0,0.00025205,2]
[341882108,1731265842737,-500.0,0.00025205,2]
[341882109,1731265842746,-500.0,0.00025205,2]
[341882110,1731265842755,-500.0,0.00025205,2]
[341882111,1731265842766,-1731.01,0.00025205,2]
[341882112,1731265842778,-500.0,0.00025205,2]
[341882113,1731265842788,-500.0,0.00025205,2]
[341882114,1731265842797,-297.73372021,0.00025205,2]
[341882115,1731265842808,-500.0,0.00025205,2]
[341882116,1731265842818,-500.0,0.00025205,2]
[341882117,1731265842829,-563.53,0.00025205,2]
[341882118,1731265842839,-832.9,0.00025205,2]
[341882119,1731265842848,-998.14,0.00025205,2]
[341882120,1731265842858,-500.0,0.00025205,2]
[341882121,1731265842867,-2001.43,0.00025205,2]
[341882122,1731265842877,-500.0,0.00025205,2]
[341882123,1731265842886,-500.0,0.00025205,2]
[341882124,1731265842896,-253.82,0.00025205,2]
[341882125,1731265842906,-500.0,0.00025205,2]
[341882127,1731265842915,-500.0,0.00025205,2]
[341882128,1731265842925,-500.0,0.00025205,2]
[341882129,1731265842934,-1489.28,0.00025205,2]
[341882130,1731265842944,-500.0,0.00025205,2]
[341882131,1731265842954,-500.0,0.00025205,2]
[341882132,1731265842964,-500.0,0.00025205,2]
[341882133,1731265842974,-500.0,0.00025205,2]
[341882134,1731265842983,-408.54176126,0.00025205,2]
[341882135,1731265842993,-500.0,0.00025205,2]
[341882136,1731265843003,-500.0,0.00025205,2]
[341882137,1731265843012,-240.71928159,0.00025205,2]
[341882138,1731265843024,-500.0,0.00025205,2]
[341882139,1731265843035,-500.0,0.00025205,2]
[341882140,1731265843044,-500.0,0.00025205,2]
[341882141,1731265843054,-807.03,0.00025205,2]
[341882142,1731265843064,-500.0,0.00025205,2]
[341882143,1731265843073,-977.78,0.00025205,2]
[341882144,1731265843082,-500.0,0.00025205,2]
[341882145,1731265843091,-500.0,0.00025205,2]
[341882146,1731265843100,-500.0,0.00025205,2]
[341882148,1731265843109,-500.0,0.00025205,2]
[341882150,1731265843118,-506.55,0.00025205,2]
[341882152,1731265843128,-500.0,0.00025205,2]
[341882154,1731265843137,-500.0,0.00025205,2]
[341882156,1731265843146,-500.0,0.00025205,2]
[341882158,1731265843155,-1273.93,0.00025205,2]
[341882159,1731265843166,-500.0,0.00025205,2]
[341882160,1731265843175,-500.0,0.00025205,2]
[341882161,1731265843184,-2567.11,0.00025205,2]
[341882162,1731265843194,-500.0,0.00025205,2]
[341882163,1731265843203,-500.0,0.00025205,2]
[341882164,1731265843212,-500.0,0.00025205,2]
[341882165,1731265843222,-513.4950478,0.00025205,2]
[341882166,1731265843232,-500.0,0.00025205,2]
[341882167,1731265843241,-977.17,0.00025205,2]
[341882168,1731265843251,-500.0,0.00025205,2]
[341882169,1731265843260,-500.0,0.00025205,2]
[341882170,1731265843270,-500.0,0.00025205,2]
[341882171,1731265843282,-2504.22,0.00025205,2]
[341882172,1731265843291,-500.0,0.00025205,2]
[341882173,1731265843301,-500.0,0.00025205,2]
[341882174,1731265843311,-955.57,0.00025205,2]
[341882175,1731265843320,-500.0,0.00025205,2]
[341882176,1731265843330,-500.0,0.00025205,2]
[341882177,1731265843339,-553.76,0.00025205,2]
[341882178,1731265843349,-500.0,0.00025205,2]
[341882179,1731265843358,-573.5697551,0.00025205,2]
[341882180,1731265843368,-631.47,0.00025205,2]
[341882181,1731265843378,-500.0,0.00025205,2]
[341882182,1731265843387,-1219.26,0.00025205,2]
[341882183,1731265843396,-504.29,0.00025205,2]
[341882184,1731265843406,-1292.39,0.00025205,2]
[341882185,1731265843416,-3362.96,0.00025205,2]
[341882186,1731265843426,-500.0,0.00025205,2]
[341882187,1731265843435,-500.0,0.00025205,2]
[341882188,1731265843444,-902.38,0.00025205,2]
[341882189,1731265843454,-500.0,0.00025205,2]
[341882190,1731265843464,-500.0,0.00025205,2]
[341882191,1731265843473,-241.67489822,0.00025205,2]
[341882193,1731265843482,-573.32,0.00025205,2]
[341882195,1731265843492,-4064.15,0.00025205,2]
[341882197,1731265843501,-500.0,0.00025205,2]
[341882198,1731265843511,-500.0,0.00025205,2]
[341882200,1731265843521,-500.0,0.00025205,2]
[341882201,1731265843542,-328.09861926,0.00025205,2]
[341882202,1731265843552,-500.0,0.00025205,2]
[341882203,1731265843561,-5741.44,0.00025205,2]
[341882204,1731265843570,-588.45,0.00025205,2]
[341882205,1731265843580,-500.0,0.00025205,2]
[341882206,1731265843590,-853.21,0.00025205,2]
[341882207,1731265843599,-13269.49,0.00025205,2]
[341882208,1731265843609,-544.38,0.00025205,2]
[341882209,1731265843619,-637.25,0.00025205,2]
[341882210,1731265843628,-1288.67,0.00025205,2]
[341882211,1731265843638,-571.42,0.00025205,2]
[341882212,1731265843647,-584.97612012,0.00025205,2]
[341882213,1731265843656,-921.43,0.00025205,2]
[341882214,1731265843665,-468.0,0.00025205,2]
[341882215,1731265843675,-1022.55254768,0.00025242,2]
[341882217,1731265843685,-158.853707,0.00025295,2]
[341882218,1731265843695,-1210.47,0.000253,14]
[341882219,1731265843704,-8538.4275308,0.00025343,2]
[341882220,1731265843714,-303.09092121,0.00025413,2]
[341882221,1731265843727,-153.0,0.00025426,2]
[341882222,1731265843737,-153.0,0.00025426,2]
[341882223,1731265843747,-153.0,0.00025427,2]
[341882224,1731265843756,-153.0,0.00025427,2]
[341882226,1731265843767,-153.0,0.00025427,2]
[341882228,1731265843776,-153.0,0.00025427,2]
[341882229,1731265843786,-153.0,0.00025427,2]
[341882231,1731265843797,-153.0,0.00025427,2]
[341882233,1731265843807,-153.0,0.00025427,2]
[341882234,1731265843816,-153.0,0.00025427,2]
[341882235,1731265843826,-153.0,0.00025427,2]
[341882236,1731265843837,-153.0,0.00025427,2]
[341882237,1731265843846,-153.0,0.00025427,2]
[341882238,1731265843856,-153.0,0.00025427,2]
[341882240,1731265843866,-153.0,0.00025429,2]
[341882242,1731265843875,-153.0,0.00025429,2]
[341882244,1731265843886,-153.0,0.00025429,2]
[341882246,1731265843895,-153.0,0.00025429,2]
[341882248,1731265843905,-153.0,0.00025429,2]
[341882249,1731265843914,-153.0,0.00025429,2]
[341882250,1731265843924,-153.0,0.00025429,2]
[341882251,1731265843934,-153.0,0.00025429,2]
[341882252,1731265843943,-153.0,0.00025429,2]
[341882253,1731265843953,-500.0,0.00025478,2]
[341882254,1731265843962,-499.63717337,0.00025478,2]
[341882255,1731265843973,-494.38278555,0.00025478,2]
[341882256,1731265843982,-500.0,0.00025478,2]
[341882257,1731265843992,-274.66760846,0.00025478,2]
[341882258,1731265844001,-262.89352248,0.00025478,2]
[341882259,1731265844010,-500.0,0.00025478,2]
[341882260,1731265844019,-533.74081734,0.00025478,2]
[341882261,1731265844034,-471.83014834,0.00025478,2]
[341882262,1731265844043,-500.0,0.00025478,2]
[341882263,1731265844052,-500.0,0.00025478,2]
[341882264,1731265844061,-589.54540351,0.00025478,2]
[341882265,1731265844071,-500.0,0.00025479,2]
[341882266,1731265844081,-500.0,0.00025479,2]
[341882267,1731265844090,-500.0,0.00025479,2]
[341882268,1731265844099,-500.0,0.00025479,2]
[341882269,1731265844108,-398.49773427,0.00025479,2]
[341882270,1731265844117,-500.0,0.00025479,2]
[341882271,1731265844128,-294.88,0.00025479,2]
[341882272,1731265844137,-500.0,0.00025479,2]
[341882273,1731265844146,-500.0,0.00025479,2]
[341882274,1731265844155,-500.0,0.00025479,2]
[341882275,1731265844165,-500.0,0.00025479,2]
[341882276,1731265844174,-575.41,0.00025479,2]
[341882277,1731265844184,-500.0,0.00025479,2]
[341882278,1731265844193,-500.0,0.00025479,2]
[341882279,1731265844202,-500.0,0.00025479,2]
[341882280,1731265844211,-500.0,0.00025479,2]
[341882281,1731265844220,-173.05786186,0.00025479,2]
[341882282,1731265844229,-514.84057173,0.00025479,2]
[341882283,1731265844239,-181.6,0.00025479,2]
[341882284,1731265844248,-480.13543709,0.00025479,2]
[341882285,1731265844257,-500.0,0.00025479,2]
[341882286,1731265844266,-500.0,0.00025479,2]
[341882288,1731265844278,-845.13,0.00025479,2]
[341882289,1731265844288,-500.0,0.00025479,2]
[341882290,1731265844297,-500.0,0.00025479,2]
[341882291,1731265844307,-500.0,0.00025479,2]
[341882292,1731265844316,-500.0,0.00025479,2]
[341882293,1731265844325,-500.0,0.00025479,2]
[341882294,1731265844334,-500.0,0.00025479,2]
[341882295,1731265844344,-1731.01,0.00025479,2]
[341882296,1731265844353,-500.0,0.00025479,2]
[341882297,1731265844362,-500.0,0.00025479,2]
[341882298,1731265844371,-500.0,0.00025479,2]
[341882299,1731265844381,-500.0,0.00025479,2]
[341882301,1731265844391,-832.9,0.00025479,2]
[341882303,1731265844400,-998.14,0.00025479,2]
[341882305,1731265844409,-568.35922981,0.00025479,2]
[341882307,1731265844418,-2001.43,0.00025479,2]
[341882309,1731265844427,-500.0,0.00025479,2]
[341882311,1731265844437,-453.87898042,0.00025479,2]
[341882313,1731265844446,-500.0,0.00025479,2]
[341882315,1731265844455,-500.0,0.00025479,2]
[341882316,1731265844464,-500.0,0.00025479,2]
[341882317,1731265844474,-1489.28,0.00025479,2]
[341882318,1731265844483,-500.0,0.00025479,2]
[341882319,1731265844493,-500.0,0.00025479,2]
[341882320,1731265844503,-500.0,0.00025479,2]
[341882321,1731265844512,-500.0,0.00025479,2]
[341882322,1731265844521,-500.0,0.00025479,2]
[341882323,1731265844532,-556.20741071,0.00025479,2]
[341882324,1731265844541,-500.0,0.00025479,2]
[341882325,1731265844550,-500.0,0.00025479,2]
[341882326,1731265844559,-500.0,0.00025479,2]
[341882327,1731265844570,-807.03,0.00025479,2]
[341882328,1731265844579,-473.58972281,0.00025479,2]
[341882329,1731265844587,-977.78,0.00025479,2]
[341882330,1731265844595,-500.0,0.00025479,2]
[341882331,1731265844603,-500.0,0.00025479,2]
[341882332,1731265844612,-280.89845815,0.00025479,2]
[341882333,1731265844622,-500.0,0.00025479,2]
[341882334,1731265844632,-506.55,0.00025479,2]
[341882335,1731265844643,-500.0,0.00025479,2]
[341882336,1731265844653,-500.0,0.00025479,2]
[341882337,1731265844663,-509.52731785,0.00025479,2]
[341882338,1731265844672,-1273.93,0.00025479,2]
[341882339,1731265844682,-500.0,0.00025479,2]
[341882340,1731265844692,-500.0,0.00025479,2]
[341882341,1731265844701,-2567.11,0.00025479,2]
[341882342,1731265844711,-500.0,0.00025479,2]
[341882343,1731265844721,-500.0,0.00025479,2]
[341882344,1731265844734,-500.0,0.00025479,2]
[341882345,1731265844744,-629.6,0.00025479,2]
[341882346,1731265844753,-977.17,0.00025479,2]
[341882347,1731265844762,-500.0,0.00025479,2]
[341882348,1731265844772,-500.0,0.00025479,2]
[341882349,1731265844784,-500.0,0.00025479,2]
[341882350,1731265844794,-2504.22,0.00025479,2]
[341882351,1731265844804,-251.34937098,0.00025479,2]
[341882352,1731265844814,-500.0,0.00025479,2]
[341882353,1731265844824,-955.57,0.00025479,2]
[341882354,1731265844835,-151.0,0.00025479,7]
[341882355,1731265844845,-500.0,0.00025479,2]
[341882356,1731265844855,-500.0,0.00025479,2]
[341882357,1731265844866,-553.76,0.00025479,2]
[341882358,1731265844875,-500.0,0.00025479,2]
[341882359,1731265844884,-631.47,0.00025479,2]
[341882360,1731265844895,-1219.26,0.00025479,2]
[341882361,1731265844904,-151.0,0.00025479,7]
[341882362,1731265844914,-3362.96,0.00025479,2]
[341882363,1731265844923,-1292.39,0.00025479,2]
[341882364,1731265844932,-500.0,0.00025479,2]
[341882365,1731265844941,-902.38,0.00025479,2]
[341882366,1731265844950,-151.0,0.00025479,7]
[341882367,1731265844959,-500.0,0.00025479,2]
[341882368,1731265844968,-500.0,0.00025479,2]
[341882369,1731265844977,-573.32,0.00025479,2]
[341882370,1731265844986,-4064.15,0.00025479,2]
[341882371,1731265844995,-500.0,0.00025479,2]
[341882372,1731265845005,-151.0,0.00025479,7]
[341882373,1731265845014,-500.0,0.00025479,2]
[341882374,1731265845025,-500.0,0.00025479,2]
[341882375,1731265845034,-5741.44,0.00025479,2]
[341882376,1731265845043,-588.45,0.00025479,2]
[341882377,1731265845053,-500.0,0.00025479,2]
[341882378,1731265845062,-853.21,0.00025479,2]
[341882379,1731265845071,-13269.49,0.00025479,2]
[341882380,1731265845081,-544.38,0.00025479,2]
[341882381,1731265845091,-637.25,0.00025479,2]
[341882382,1731265845100,-1288.67,0.00025479,2]
[341882383,1731265845109,-151.0,0.00025479,7]
[341882384,1731265845118,-921.43,0.00025479,2]
[341882385,1731265845127,-468.0,0.00025479,2]
[341882386,1731265845136,-150.112233,0.000255,12]
[341882387,1731265845145,-2407.62593099,0.0002551,2]
[341882388,1731265845155,-1022.55254768,0.00025585,2]
[341882389,1731265845165,-150.112233,0.000256,19]
[341882390,1731265845174,-1766.72710344,0.00025638,2]
[341882391,1731265845183,-303.09092121,0.00025667,2]
[341882392,1731265845192,-177.93,0.00025667,7]
[341882393,1731265845202,-150.112234,0.000257,16]
[341882394,1731265845211,-151.0,0.00025752,7]
[341882395,1731265845220,-151.0,0.00025752,7]
[341882396,1731265845229,-222.353032,0.00025752,7]
[341882397,1731265845238,-820.850837,0.00025752,7]
[341882398,1731265845248,-820.850837,0.00025752,7]
[341882399,1731265845258,-462.064509,0.00025752,7]
[341882400,1731265845267,-462.064509,0.00025752,7]
[341882401,1731265845279,-151.0,0.00025752,7]
[341882402,1731265845291,-789.833325,0.00025752,7]
[341882403,1731265845300,-246.23009,0.00025752,7]
[341882404,1731265845310,-246.23009,0.00025752,7]
[341882405,1731265845319,-789.833325,0.00025752,7]
[341882406,1731265845329,-1861.549979,0.00025752,7]
[341882407,1731265845338,-1861.549979,0.00025752,7]
[341882408,1731265845348,-543.419579,0.00025752,7]
[341882409,1731265845356,-543.419579,0.00025752,7]
[341882410,1731265845366,-1693.724242,0.00025752,7]
[341882411,1731265845492,-1693.724242,0.00025752,7]
[341882412,1731265845501,-151.0,0.00025752,7]
[341882413,1731265845511,-151.0,0.00025752,7]
[341882414,1731265845520,-151.0,0.00025753,7]
[341882415,1731265845533,-284.311864,0.00025753,7]
[341882416,1731265845543,-284.311864,0.00025753,7]
[341882417,1731265845552,-151.0,0.00025753,7]
[341882418,1731265845562,-505.214701,0.00025753,7]
[341882419,1731265845571,-505.214701,0.00025753,7]
[341882420,1731265845581,-212.654744,0.00025753,7]
[341882421,1731265845591,-212.654744,0.00025753,7]
[341882422,1731265845601,-500.0,0.00025753,2]
[341882423,1731265845611,-172.56,0.00025753,2]
[341882424,1731265845621,-500.0,0.00025753,2]
[341882425,1731265845630,-500.0,0.00025753,2]
[341882426,1731265845640,-500.0,0.00025753,2]
[341882427,1731265845650,-500.0,0.00025753,2]
[341882428,1731265845660,-151.0,0.00025753,7]
[341882429,1731265845669,-500.0,0.00025753,2]
[341882430,1731265845679,-500.0,0.00025753,2]
[341882431,1731265845689,-329.43467224,0.00025753,2]
[341882432,1731265845698,-575.41,0.00025753,2]
[341882433,1731265845707,-500.0,0.00025753,2]
[341882434,1731265845718,-516.58,0.00025753,2]
[341882435,1731265845730,-500.0,0.00025753,2]
[341882436,1731265845740,-500.0,0.00025753,2]
[341882437,1731265845749,-500.0,0.00025753,2]
[341882438,1731265845758,-500.0,0.00025753,2]
[341882439,1731265845768,-845.13,0.00025753,2]
[341882440,1731265845780,-500.0,0.00025753,2]
[341882441,1731265845789,-500.0,0.00025753,2]
[341882442,1731265845798,-500.0,0.00025753,2]
[341882443,1731265845809,-500.0,0.00025753,2]
[341882444,1731265845819,-500.0,0.00025753,2]
[341882445,1731265845828,-1731.01,0.00025753,2]
[341882446,1731265845837,-500.0,0.00025753,2]
[341882447,1731265845846,-500.0,0.00025753,2]
[341882448,1731265845855,-500.0,0.00025753,2]
[341882449,1731265845864,-536.99257472,0.00025753,2]
[341882450,1731265845873,-151.0,0.00025753,7]
[341882451,1731265845882,-832.9,0.00025753,2]
[341882452,1731265845890,-998.14,0.00025753,2]
[341882453,1731265845899,-151.0,0.00025753,7]
[341882454,1731265845907,-2001.43,0.00025753,2]
[341882455,1731265845917,-500.0,0.00025753,2]
[341882456,1731265845926,-299.999008,0.00025753,7]